[Event "FIDE World Rapid Chess Championship 2021"]
[White "Quparadze, Giga"]
[Black "Sindarov, Javokhir"]
[WhiteFideId "13602250"]
[BlackFideId "14205483"]
[WhiteElo "2583"]
[BlackElo "2353"]
[Result "1-0"]
[Round "01"]
[TimeControl "900+10"]
[Date "2021.12.26"]
[WhiteClock "0:06:11"]
[BlackClock "0:00:34"]

1. e4 {[%clk 0:15:18]}  e5 {[%clk 0:15:18]} 2. Nf3 {[%clk 0:15:27]}  Nc6 {[%clk 0:15:26]} 3. Bb5 {[%clk 0:15:36]}  a6 {[%clk 0:15:34]} 4. Ba4 {[%clk 0:15:44]}  Nf6 {[%clk 0:15:42]} 5. O-O {[%clk 0:15:49]}  Nxe4 {[%clk 0:15:48]} 6. d4 {[%clk 0:15:58]}  b5 {[%clk 0:15:55]} 7. Bb3 {[%clk 0:16:06]}  d5 {[%clk 0:16:01]} 8. dxe5 {[%clk 0:16:13]}  Be6 {[%clk 0:16:08]} 9. Nbd2 {[%clk 0:16:06]}  Nc5 {[%clk 0:15:32]} 10. c3 {[%clk 0:16:14]}  Be7 {[%clk 0:15:39]} 11. Bc2 {[%clk 0:16:21]}  d4 {[%clk 0:15:41]} 12. Nb3 {[%clk 0:16:30]}  d3 {[%clk 0:15:46]} 13. Bb1 {[%clk 0:16:38]}  Nxb3 {[%clk 0:15:50]} 14. axb3 {[%clk 0:16:46]}  Bf5 {[%clk 0:15:57]} 15. Be3 {[%clk 0:16:34]}  O-O {[%clk 0:16:02]} 16. Bd4 {[%clk 0:16:00]}  Qd5 {[%clk 0:15:47]} 17. Re1 {[%clk 0:15:52]}  Rfd8 {[%clk 0:13:42]} 18. Re3 {[%clk 0:12:29]}  Nxd4 {[%clk 0:13:20]} 19. cxd4 {[%clk 0:12:35]}  c5 {[%clk 0:13:26]} 20. Bxd3 {[%clk 0:12:42]}  cxd4 {[%clk 0:13:33]} 21. Re2 {[%clk 0:11:03]}  Bxd3 {[%clk 0:09:55]} 22. Qxd3 {[%clk 0:11:11]}  Rac8 {[%clk 0:07:38]} 23. Re4 {[%clk 0:11:17]}  Qe6 {[%clk 0:04:30]} 24. h3 {[%clk 0:10:50]}  Bc5 {[%clk 0:03:42]} 25. Rg4 {[%clk 0:10:42]}  h6 {[%clk 0:03:25]} 26. Re1 {[%clk 0:10:36]}  Rd5 {[%clk 0:02:31]} 27. Ree4 {[%clk 0:10:39]}  Bb6 {[%clk 0:02:20]} 28. Rg3 {[%clk 0:10:46]}  Bc7 {[%clk 0:00:33]} 29. Nxd4 {[%clk 0:10:17]}  Bxe5 {[%clk 0:00:34]} 30. Rxg7+ {[%clk 0:05:18]}  Bxg7 {[%clk 0:00:42]} 31. Rxe6 {[%clk 0:05:27]}  fxe6 {[%clk 0:00:51]} 32. Qe3 {[%clk 0:05:36]}  Rd6 {[%clk 0:00:50]} 33. Nf3 {[%clk 0:05:38]}  Rc2 {[%clk 0:00:29]} 34. Qa7 {[%clk 0:05:46]}  Kh7 {[%clk 0:00:15]} 35. Qe7 {[%clk 0:05:42]}  Rd1+ {[%clk 0:00:16]} 36. Kh2 {[%clk 0:05:50]}  Re2 {[%clk 0:00:21]} 37. Qf7 {[%clk 0:05:52]}  Rf1 {[%clk 0:00:25]} 38. Ng5+ {[%clk 0:05:54]}  hxg5 {[%clk 0:00:31]} 39. Qh5+ {[%clk 0:06:03]}  Kg8 {[%clk 0:00:34]} 40. Qxe2 {[%clk 0:06:11]} 1-0


[Site "http://www.Chess.com"]

[Event "FIDE World Rapid Chess Championship 2021"]
[White "Moroni, Luca Jr"]
[Black "Rapport, Richard"]
[WhiteFideId "865834"]
[BlackFideId "738590"]
[WhiteElo "2519"]
[BlackElo "2750"]
[Result "0-1"]
[Round "01"]
[TimeControl "900+10"]
[Date "2021.12.26"]
[WhiteClock "0:00:14"]
[BlackClock "0:00:50"]

1. d4 {[%clk 0:15:18]}  e6 {[%clk 0:15:09]} 2. c4 {[%clk 0:15:23]}  f5 {[%clk 0:15:16]} 3. g3 {[%clk 0:15:28]}  Nf6 {[%clk 0:15:21]} 4. Bg2 {[%clk 0:15:35]}  Be7 {[%clk 0:15:25]} 5. Nf3 {[%clk 0:15:41]}  d5 {[%clk 0:15:30]} 6. O-O {[%clk 0:15:37]}  Ne4 {[%clk 0:15:37]} 7. b3 {[%clk 0:14:54]}  Nc6 {[%clk 0:15:38]} 8. Bb2 {[%clk 0:13:23]}  h5 {[%clk 0:15:41]} 9. Nbd2 {[%clk 0:08:15]}  h4 {[%clk 0:15:46]} 10. e3 {[%clk 0:07:38]}  hxg3 {[%clk 0:15:41]} 11. hxg3 {[%clk 0:07:45]}  Bb4 {[%clk 0:15:04]} 12. Nxe4 {[%clk 0:04:58]}  fxe4 {[%clk 0:13:20]} 13. Ne5 {[%clk 0:05:06]}  Qg5 {[%clk 0:09:44]} 14. Qg4 {[%clk 0:05:00]}  Qh6 {[%clk 0:08:50]} 15. Qg6+ {[%clk 0:04:28]}  Qxg6 {[%clk 0:08:42]} 16. Nxg6 {[%clk 0:04:36]}  Rh6 {[%clk 0:08:49]} 17. Nf4 {[%clk 0:04:07]}  Ne7 {[%clk 0:08:36]} 18. a3 {[%clk 0:02:02]}  Bd6 {[%clk 0:08:44]} 19. f3 {[%clk 0:01:42]}  Nf5 {[%clk 0:06:51]} 20. Kf2 {[%clk 0:01:35]}  Bxf4 {[%clk 0:05:58]} 21. gxf4 {[%clk 0:01:32]}  exf3 {[%clk 0:06:02]} 22. Kxf3 {[%clk 0:01:16]}  Rh2 {[%clk 0:05:39]} 23. Rf2 {[%clk 0:01:06]}  dxc4 {[%clk 0:05:05]} 24. bxc4 {[%clk 0:01:11]}  Bd7 {[%clk 0:03:02]} 25. Ke2 {[%clk 0:00:32]}  Kf7 {[%clk 0:02:11]} 26. Rg1 {[%clk 0:00:22]}  Rah8 {[%clk 0:02:09]} 27. Bf3 {[%clk 0:00:15]}  b5 {[%clk 0:01:29]} 28. c5 {[%clk 0:00:20]}  b4 {[%clk 0:01:38]} 29. Rxh2 {[%clk 0:00:20]}  Rxh2+ {[%clk 0:01:41]} 30. Rg2 {[%clk 0:00:30]}  bxa3 {[%clk 0:01:17]} 31. Bxa3 {[%clk 0:00:29]}  Rh3 {[%clk 0:01:25]} 32. Bc1 {[%clk 0:00:21]}  Bb5+ {[%clk 0:00:33]} 33. Kf2 {[%clk 0:00:23]}  a5 {[%clk 0:00:31]} 34. Bg4 {[%clk 0:00:21]}  Rh1 {[%clk 0:00:37]} 35. Rg1 {[%clk 0:00:28]}  Rh2+ {[%clk 0:00:14]} 36. Rg2 {[%clk 0:00:37]}  Rxg2+ {[%clk 0:00:23]} 37. Kxg2 {[%clk 0:00:46]}  Bc6+ {[%clk 0:00:32]} 38. Kf2 {[%clk 0:00:55]}  a4 {[%clk 0:00:17]} 39. Bb2 {[%clk 0:00:13]}  Ne7 {[%clk 0:00:13]} 40. Ke2 {[%clk 0:00:18]}  Nd5 {[%clk 0:00:21]} 41. f5 {[%clk 0:00:13]}  exf5 {[%clk 0:00:23]} 42. Bxf5 {[%clk 0:00:23]}  Nf6 {[%clk 0:00:25]} 43. Bc2 {[%clk 0:00:12]}  g5 {[%clk 0:00:34]} 44. Kf2 {[%clk 0:00:15]}  Ke6 {[%clk 0:00:32]} 45. Bb1 {[%clk 0:00:15]}  Be4 {[%clk 0:00:34]} 46. Ba2+ {[%clk 0:00:24]}  Kf5 {[%clk 0:00:39]} 47. Bc4 {[%clk 0:00:18]}  c6 {[%clk 0:00:36]} 48. Ba6 {[%clk 0:00:21]}  Kg4 {[%clk 0:00:35]} 49. Be2+ {[%clk 0:00:28]}  Kh4 {[%clk 0:00:42]} 50. Bd1 {[%clk 0:00:29]}  g4 {[%clk 0:00:48]} 51. Bxa4 {[%clk 0:00:23]}  g3+ {[%clk 0:00:44]} 52. Kg1 {[%clk 0:00:33]}  Ng4 {[%clk 0:00:48]} 53. d5 {[%clk 0:00:14]}  Nf2 {[%clk 0:00:38]} 54. Bf6+ {[%clk 0:00:15]}  Kg4 {[%clk 0:00:47]} 55. Bxc6 {[%clk 0:00:14]}  Nh3+ {[%clk 0:00:50]} 0-1


[Site "http://www.Chess.com"]

[Event "FIDE World Rapid Chess Championship 2021"]
[White "Nasuta, Grzegorz"]
[Black "Gareyev, Timur"]
[WhiteFideId "1141686"]
[BlackFideId "14200937"]
[WhiteElo "2345"]
[BlackElo "2578"]
[Result "0-1"]
[Round "01"]
[TimeControl "900+10"]
[Date "2021.12.26"]
[WhiteClock "0:00:36"]
[BlackClock "0:05:22"]

1. e4 {[%clk 0:15:18]}  d6 {[%clk 0:15:09]} 2. d4 {[%clk 0:15:27]}  g6 {[%clk 0:15:15]} 3. Nc3 {[%clk 0:15:28]}  Bg7 {[%clk 0:15:21]} 4. Be3 {[%clk 0:15:34]}  a6 {[%clk 0:15:19]} 5. Qd2 {[%clk 0:15:34]}  b5 {[%clk 0:15:15]} 6. O-O-O {[%clk 0:15:36]}  Nd7 {[%clk 0:15:01]} 7. h4 {[%clk 0:15:31]}  Ngf6 {[%clk 0:13:59]} 8. f3 {[%clk 0:14:43]}  h6 {[%clk 0:12:54]} 9. g4 {[%clk 0:12:40]}  Nb6 {[%clk 0:12:44]} 10. Nh3 {[%clk 0:11:53]}  b4 {[%clk 0:12:23]} 11. Nb1 {[%clk 0:11:55]}  a5 {[%clk 0:12:27]} 12. Nf4 {[%clk 0:08:12]}  Nfd7 {[%clk 0:09:43]} 13. e5 {[%clk 0:03:56]}  e6 {[%clk 0:08:53]} 14. exd6 {[%clk 0:01:35]}  Bb7 {[%clk 0:08:05]} 15. d5 {[%clk 0:01:02]}  Qf6 {[%clk 0:06:43]} 16. c3 {[%clk 0:00:47]}  e5 {[%clk 0:06:35]} 17. dxc7 {[%clk 0:00:50]}  Qd6 {[%clk 0:06:22]} 18. Bb5 {[%clk 0:00:45]}  O-O {[%clk 0:05:22]} 19. Nxg6 {[%clk 0:00:36]}  fxg6 {[%clk 0:05:22]} 0-1


[Site "http://www.Chess.com"]

[Event "FIDE World Rapid Chess Championship 2021"]
[White "Halkias, Stelios"]
[Black "Teclaf, Pawel"]
[WhiteFideId "4201809"]
[BlackFideId "1185934"]
[WhiteElo "2576"]
[BlackElo "2345"]
[Result "1/2-1/2"]
[Round "01"]
[TimeControl "900+10"]
[Date "2021.12.26"]
[WhiteClock "0:01:26"]
[BlackClock "0:00:33"]

1. Nf3 {[%clk 0:15:10]}  Nf6 {[%clk 0:15:18]} 2. c4 {[%clk 0:15:15]}  b6 {[%clk 0:15:15]} 3. g3 {[%clk 0:15:19]}  Bb7 {[%clk 0:15:23]} 4. Bg2 {[%clk 0:15:17]}  g6 {[%clk 0:15:31]} 5. d4 {[%clk 0:15:18]}  Bg7 {[%clk 0:15:39]} 6. O-O {[%clk 0:15:16]}  O-O {[%clk 0:15:46]} 7. d5 {[%clk 0:15:06]}  e6 {[%clk 0:15:51]} 8. Nc3 {[%clk 0:15:00]}  exd5 {[%clk 0:15:59]} 9. cxd5 {[%clk 0:15:01]}  Re8 {[%clk 0:16:07]} 10. Nd4 {[%clk 0:14:05]}  Na6 {[%clk 0:16:16]} 11. Ndb5 {[%clk 0:11:40]}  d6 {[%clk 0:14:55]} 12. Qc2 {[%clk 0:09:54]}  Qd7 {[%clk 0:10:52]} 13. Rd1 {[%clk 0:08:45]}  Nc5 {[%clk 0:10:44]} 14. Nd4 {[%clk 0:07:42]}  a5 {[%clk 0:07:40]} 15. h3 {[%clk 0:07:36]}  Ba6 {[%clk 0:04:35]} 16. a4 {[%clk 0:05:16]}  Qc8 {[%clk 0:03:35]} 17. b3 {[%clk 0:05:00]}  Nfd7 {[%clk 0:03:18]} 18. Bb2 {[%clk 0:05:06]}  h5 {[%clk 0:03:05]} 19. Ncb5 {[%clk 0:04:54]}  Ne5 {[%clk 0:02:30]} 20. e3 {[%clk 0:04:20]}  Bb7 {[%clk 0:02:32]} 21. Nc6 {[%clk 0:04:02]}  Bxc6 {[%clk 0:02:01]} 22. dxc6 {[%clk 0:04:11]}  Na6 {[%clk 0:02:09]} 23. Rac1 {[%clk 0:04:10]}  Nb4 {[%clk 0:01:59]} 24. Qe2 {[%clk 0:04:17]}  Ned3 {[%clk 0:01:21]} 25. Bxg7 {[%clk 0:01:53]}  Nxc1 {[%clk 0:01:29]} 26. Qb2 {[%clk 0:02:02]}  Ncd3 {[%clk 0:01:07]} 27. Qc3 {[%clk 0:01:59]}  Qf5 {[%clk 0:00:49]} 28. Rd2 {[%clk 0:01:54]}  Rac8 {[%clk 0:00:59]} 29. Bh6 {[%clk 0:01:46]}  Ne5 {[%clk 0:00:33]} 30. f4 {[%clk 0:01:26]} 1/2-1/2


[Site "http://www.Chess.com"]

[Event "FIDE World Rapid Chess Championship 2021"]
[White "Wojtaszek, Radoslaw"]
[Black "Michalik, Peter"]
[WhiteFideId "1118358"]
[BlackFideId "14907526"]
[WhiteElo "2743"]
[BlackElo "2515"]
[Result "1/2-1/2"]
[Round "01"]
[TimeControl "900+10"]
[Date "2021.12.26"]
[WhiteClock "0:00:38"]
[BlackClock "0:01:36"]

1. c4 {[%clk 0:15:18]}  e6 {[%clk 0:15:18]} 2. Nc3 {[%clk 0:15:27]}  d5 {[%clk 0:15:26]} 3. d4 {[%clk 0:15:35]}  Nf6 {[%clk 0:15:34]} 4. cxd5 {[%clk 0:15:39]}  exd5 {[%clk 0:15:41]} 5. Bg5 {[%clk 0:15:47]}  Be7 {[%clk 0:15:47]} 6. e3 {[%clk 0:15:55]}  c6 {[%clk 0:15:53]} 7. Bd3 {[%clk 0:16:02]}  h6 {[%clk 0:15:57]} 8. Bf4 {[%clk 0:15:45]}  O-O {[%clk 0:15:43]} 9. h3 {[%clk 0:15:51]}  Bd6 {[%clk 0:15:33]} 10. Bxd6 {[%clk 0:15:57]}  Qxd6 {[%clk 0:15:42]} 11. Nf3 {[%clk 0:16:04]}  Re8 {[%clk 0:14:57]} 12. Qc2 {[%clk 0:16:11]}  Nbd7 {[%clk 0:14:07]} 13. O-O {[%clk 0:15:24]}  Qe7 {[%clk 0:14:03]} 14. Rab1 {[%clk 0:13:27]}  Ne4 {[%clk 0:13:46]} 15. b4 {[%clk 0:13:17]}  a6 {[%clk 0:12:40]} 16. a4 {[%clk 0:11:32]}  Ndf6 {[%clk 0:12:40]} 17. b5 {[%clk 0:11:30]}  axb5 {[%clk 0:12:47]} 18. axb5 {[%clk 0:11:39]}  Bf5 {[%clk 0:10:50]} 19. bxc6 {[%clk 0:11:29]}  bxc6 {[%clk 0:09:40]} 20. Ne5 {[%clk 0:09:06]}  c5 {[%clk 0:07:21]} 21. Nxe4 {[%clk 0:09:13]}  Bxe4 {[%clk 0:06:35]} 22. Bxe4 {[%clk 0:09:10]}  Nxe4 {[%clk 0:06:21]} 23. Rb5 {[%clk 0:09:09]}  cxd4 {[%clk 0:06:12]} 24. exd4 {[%clk 0:08:44]}  Rac8 {[%clk 0:04:39]} 25. Qb2 {[%clk 0:07:47]}  f6 {[%clk 0:03:23]} 26. Ng4 {[%clk 0:07:27]}  Nc3 {[%clk 0:03:14]} 27. Rb3 {[%clk 0:06:10]}  Ne2+ {[%clk 0:02:54]} 28. Kh1 {[%clk 0:06:14]}  Nf4 {[%clk 0:02:56]} 29. Re3 {[%clk 0:05:14]}  Qd7 {[%clk 0:02:03]} 30. Qd2 {[%clk 0:04:36]}  Rxe3 {[%clk 0:01:50]} 31. Qxe3 {[%clk 0:04:43]}  Qf5 {[%clk 0:01:50]} 32. Qf3 {[%clk 0:03:27]}  Qe4 {[%clk 0:01:36]} 33. Nxf6+ {[%clk 0:01:26]}  gxf6 {[%clk 0:01:42]} 34. Qg4+ {[%clk 0:01:35]}  Kf7 {[%clk 0:01:21]} 35. f3 {[%clk 0:01:29]}  Qe2 {[%clk 0:01:15]} 36. Qd7+ {[%clk 0:01:35]}  Kg6 {[%clk 0:01:20]} 37. Qg4+ {[%clk 0:01:29]}  Kf7 {[%clk 0:01:28]} 38. Qd7+ {[%clk 0:00:36]}  Kg6 {[%clk 0:01:36]} 39. Qg4+ {[%clk 0:00:38]} 1/2-1/2


[Site "http://www.Chess.com"]

[Event "FIDE World Rapid Chess Championship 2021"]
[White "Petrosyan, Manuel"]
[Black "Dubov, Daniil"]
[WhiteFideId "13300857"]
[BlackFideId "24126055"]
[WhiteElo "2514"]
[BlackElo "2735"]
[Result "0-1"]
[Round "01"]
[TimeControl "900+10"]
[Date "2021.12.26"]
[WhiteClock "0:00:56"]
[BlackClock "0:06:13"]

1. d4 {[%clk 0:15:08]}  d5 {[%clk 0:15:18]} 2. Nf3 {[%clk 0:15:05]}  Nf6 {[%clk 0:15:26]} 3. Bf4 {[%clk 0:15:05]}  g6 {[%clk 0:15:30]} 4. h3 {[%clk 0:14:33]}  Bg7 {[%clk 0:15:38]} 5. e3 {[%clk 0:14:42]}  O-O {[%clk 0:15:45]} 6. Be2 {[%clk 0:14:36]}  c5 {[%clk 0:15:53]} 7. Nbd2 {[%clk 0:14:18]}  Nc6 {[%clk 0:15:42]} 8. c3 {[%clk 0:14:07]}  Nd7 {[%clk 0:15:31]} 9. Nb3 {[%clk 0:11:42]}  b6 {[%clk 0:15:06]} 10. a4 {[%clk 0:06:11]}  e5 {[%clk 0:14:19]} 11. Bg3 {[%clk 0:06:05]}  Qe7 {[%clk 0:11:22]} 12. O-O {[%clk 0:05:50]}  Rd8 {[%clk 0:10:44]} 13. Bb5 {[%clk 0:05:04]}  Bb7 {[%clk 0:10:51]} 14. a5 {[%clk 0:05:10]}  Rac8 {[%clk 0:10:53]} 15. axb6 {[%clk 0:03:21]}  axb6 {[%clk 0:10:59]} 16. Re1 {[%clk 0:03:19]}  h6 {[%clk 0:10:53]} 17. Nbd2 {[%clk 0:02:31]}  Ra8 {[%clk 0:09:33]} 18. Rxa8 {[%clk 0:02:07]}  Rxa8 {[%clk 0:09:41]} 19. e4 {[%clk 0:01:22]}  dxe4 {[%clk 0:09:29]} 20. Nxe4 {[%clk 0:01:30]}  cxd4 {[%clk 0:09:37]} 21. cxd4 {[%clk 0:01:35]}  Qb4 {[%clk 0:09:45]} 22. Bxc6 {[%clk 0:00:20]}  Bxc6 {[%clk 0:09:54]} 23. d5 {[%clk 0:00:30]}  Bb7 {[%clk 0:10:02]} 24. Qd2 {[%clk 0:00:13]}  Qxd2 {[%clk 0:09:52]} 25. Nexd2 {[%clk 0:00:16]}  Bxd5 {[%clk 0:09:53]} 26. Bxe5 {[%clk 0:00:16]}  Nxe5 {[%clk 0:09:12]} 27. Nxe5 {[%clk 0:00:25]}  Re8 {[%clk 0:08:42]} 28. Ndf3 {[%clk 0:00:16]}  Bxf3 {[%clk 0:06:13]} 29. Nxf3 {[%clk 0:00:25]}  Rxe1+ {[%clk 0:07:36]} 30. Nxe1 {[%clk 0:00:34]}  Bxb2 {[%clk 0:07:43]} 31. Kf1 {[%clk 0:00:44]}  Kg7 {[%clk 0:07:40]} 32. Ke2 {[%clk 0:00:53]}  Kf6 {[%clk 0:07:43]} 33. Kd3 {[%clk 0:00:43]}  Ke5 {[%clk 0:07:27]} 34. Nc2 {[%clk 0:00:26]}  Kd5 {[%clk 0:07:19]} 35. Ne3+ {[%clk 0:00:12]}  Kc5 {[%clk 0:07:27]} 36. Nc4 {[%clk 0:00:13]}  Bg7 {[%clk 0:07:21]} 37. Nd2 {[%clk 0:00:16]}  b5 {[%clk 0:07:23]} 38. Ne4+ {[%clk 0:00:19]}  Kd5 {[%clk 0:07:31]} 39. Nd2 {[%clk 0:00:21]}  Bd4 {[%clk 0:07:35]} 40. f3 {[%clk 0:00:24]}  Be5 {[%clk 0:07:14]} 41. Nb3 {[%clk 0:00:32]}  Bc7 {[%clk 0:07:00]} 42. Kc3 {[%clk 0:00:19]}  Bd6 {[%clk 0:07:00]} 43. Kd3 {[%clk 0:00:23]}  Be5 {[%clk 0:07:08]} 44. Na5 {[%clk 0:00:13]}  Bg7 {[%clk 0:06:57]} 45. Nb3 {[%clk 0:00:22]}  Bf6 {[%clk 0:07:06]} 46. Nd2 {[%clk 0:00:30]}  Bd8 {[%clk 0:07:02]} 47. Nb3 {[%clk 0:00:31]}  h5 {[%clk 0:06:39]} 48. Kc3 {[%clk 0:00:35]}  Bf6+ {[%clk 0:06:29]} 49. Kd3 {[%clk 0:00:44]}  Be5 {[%clk 0:06:23]} 50. Na5 {[%clk 0:00:31]}  h4 {[%clk 0:05:12]} 51. Nb3 {[%clk 0:00:40]}  Bf6 {[%clk 0:05:17]} 52. Nd2 {[%clk 0:00:48]}  Bg7 {[%clk 0:05:21]} 53. Nb3 {[%clk 0:00:43]}  Be5 {[%clk 0:05:30]} 54. Na5 {[%clk 0:00:19]}  Kc5 {[%clk 0:05:38]} 55. Nb7+ {[%clk 0:00:16]}  Kb4 {[%clk 0:05:27]} 56. Nd8 {[%clk 0:00:25]}  Ka3 {[%clk 0:05:35]} 57. Nxf7 {[%clk 0:00:31]}  Bc7 {[%clk 0:05:41]} 58. Ng5 {[%clk 0:00:36]}  b4 {[%clk 0:05:46]} 59. Ne4 {[%clk 0:00:26]}  b3 {[%clk 0:05:42]} 60. Nd2 {[%clk 0:00:11]}  g5 {[%clk 0:05:16]} 61. Nb1+ {[%clk 0:00:11]}  Ka2 {[%clk 0:05:17]} 62. Nc3+ {[%clk 0:00:19]}  Ka1 {[%clk 0:05:24]} 63. Na4 {[%clk 0:00:11]}  b2 {[%clk 0:05:24]} 64. Nxb2 {[%clk 0:00:20]}  Kxb2 {[%clk 0:05:32]} 65. Ke2 {[%clk 0:00:27]}  Bf4 {[%clk 0:05:36]} 66. Kf2 {[%clk 0:00:35]}  Kc3 {[%clk 0:05:45]} 67. Ke2 {[%clk 0:00:35]}  Kc2 {[%clk 0:05:54]} 68. Ke1 {[%clk 0:00:39]}  Kd3 {[%clk 0:06:00]} 69. Kf2 {[%clk 0:00:47]}  Kd2 {[%clk 0:06:08]} 70. Kf1 {[%clk 0:00:56]}  Be3 {[%clk 0:06:13]} 0-1


[Site "http://www.Chess.com"]

[Event "FIDE World Rapid Chess Championship 2021"]
[White "Sargsyan, Shant"]
[Black "Bluebaum, Matthias"]
[WhiteFideId "13306766"]
[BlackFideId "24651516"]
[WhiteElo "2344"]
[BlackElo "2575"]
[Result "1-0"]
[Round "01"]
[TimeControl "900+10"]
[Date "2021.12.26"]
[WhiteClock "0:02:14"]
[BlackClock "0:00:13"]

1. d4 {[%clk 0:15:11]}  d5 {[%clk 0:15:17]} 2. c4 {[%clk 0:15:15]}  e6 {[%clk 0:15:26]} 3. Nf3 {[%clk 0:15:20]}  Nf6 {[%clk 0:15:34]} 4. g3 {[%clk 0:15:27]}  Bb4+ {[%clk 0:15:37]} 5. Bd2 {[%clk 0:15:28]}  a5 {[%clk 0:15:45]} 6. Bg2 {[%clk 0:15:28]}  O-O {[%clk 0:15:53]} 7. Qc1 {[%clk 0:15:26]}  Be7 {[%clk 0:15:38]} 8. O-O {[%clk 0:15:19]}  c6 {[%clk 0:15:43]} 9. Bf4 {[%clk 0:14:58]}  Nbd7 {[%clk 0:15:00]} 10. Rd1 {[%clk 0:13:54]}  Nh5 {[%clk 0:13:59]} 11. Bd2 {[%clk 0:13:07]}  Nhf6 {[%clk 0:13:44]} 12. b3 {[%clk 0:13:07]}  b6 {[%clk 0:13:36]} 13. Bc3 {[%clk 0:12:45]}  Bb7 {[%clk 0:13:27]} 14. Nbd2 {[%clk 0:12:42]}  Qc7 {[%clk 0:13:08]} 15. Qc2 {[%clk 0:12:20]}  c5 {[%clk 0:12:09]} 16. dxc5 {[%clk 0:12:17]}  bxc5 {[%clk 0:12:09]} 17. cxd5 {[%clk 0:11:59]}  exd5 {[%clk 0:12:17]} 18. Rac1 {[%clk 0:11:51]}  Rfd8 {[%clk 0:11:44]} 19. Nh4 {[%clk 0:11:15]}  Qb8 {[%clk 0:09:38]} 20. e3 {[%clk 0:10:19]}  Bf8 {[%clk 0:09:36]} 21. Qb2 {[%clk 0:09:00]}  Ra6 {[%clk 0:07:26]} 22. a4 {[%clk 0:08:40]}  Bc6 {[%clk 0:06:48]} 23. Nf5 {[%clk 0:07:53]}  Qa8 {[%clk 0:05:33]} 24. Bxf6 {[%clk 0:05:03]}  Nxf6 {[%clk 0:05:41]} 25. Nh6+ {[%clk 0:05:10]}  gxh6 {[%clk 0:05:49]} 26. Qxf6 {[%clk 0:05:18]}  Bxa4 {[%clk 0:05:18]} 27. Qh4 {[%clk 0:05:25]}  Bc6 {[%clk 0:02:21]} 28. Ne4 {[%clk 0:05:10]}  Bg7 {[%clk 0:02:13]} 29. Nxc5 {[%clk 0:03:58]}  Rb6 {[%clk 0:02:22]} 30. Nd3 {[%clk 0:03:54]}  Bb7 {[%clk 0:01:35]} 31. Nf4 {[%clk 0:03:00]}  d4 {[%clk 0:00:16]} 32. Bxb7 {[%clk 0:02:46]}  Rxb7 {[%clk 0:00:25]} 33. Nh5 {[%clk 0:02:37]}  Rb5 {[%clk 0:00:17]} 34. Nxg7 {[%clk 0:02:04]}  Kxg7 {[%clk 0:00:26]} 35. Rxd4 {[%clk 0:02:05]}  Rxd4 {[%clk 0:00:13]} 36. Qxd4+ {[%clk 0:02:10]}  Kg6 {[%clk 0:00:13]} 37. Qd3+ {[%clk 0:02:14]} 1-0


[Site "http://www.Chess.com"]

[Event "FIDE World Rapid Chess Championship 2021"]
[White "Salem, A.R. Saleh"]
[Black "Yuffa, Daniil"]
[WhiteFideId "9301348"]
[BlackFideId "24131423"]
[WhiteElo "2729"]
[BlackElo "2514"]
[Result "0-1"]
[Round "01"]
[TimeControl "900+10"]
[Date "2021.12.26"]
[WhiteClock "0:00:53"]
[BlackClock "0:00:48"]

1. d4 {[%clk 0:15:17]}  Nf6 {[%clk 0:15:14]} 2. c4 {[%clk 0:15:26]}  e6 {[%clk 0:15:22]} 3. Nc3 {[%clk 0:15:34]}  Bb4 {[%clk 0:15:29]} 4. a3 {[%clk 0:15:43]}  Bxc3+ {[%clk 0:15:37]} 5. bxc3 {[%clk 0:15:52]}  c5 {[%clk 0:15:45]} 6. f3 {[%clk 0:16:00]}  Nc6 {[%clk 0:15:50]} 7. e4 {[%clk 0:16:09]}  d6 {[%clk 0:15:55]} 8. Ne2 {[%clk 0:16:16]}  b6 {[%clk 0:15:40]} 9. Ng3 {[%clk 0:16:16]}  O-O {[%clk 0:15:28]} 10. Be3 {[%clk 0:15:42]}  Ba6 {[%clk 0:15:27]} 11. Bd3 {[%clk 0:15:39]}  Na5 {[%clk 0:15:22]} 12. Qe2 {[%clk 0:15:33]}  cxd4 {[%clk 0:15:27]} 13. cxd4 {[%clk 0:15:41]}  Rc8 {[%clk 0:15:35]} 14. Rc1 {[%clk 0:14:41]}  Nd7 {[%clk 0:15:39]} 15. O-O {[%clk 0:14:40]}  e5 {[%clk 0:14:40]} 16. Rc3 {[%clk 0:11:50]}  exd4 {[%clk 0:09:50]} 17. Bxd4 {[%clk 0:11:39]}  Ne5 {[%clk 0:09:59]} 18. Nf5 {[%clk 0:08:42]}  Nac6 {[%clk 0:10:06]} 19. Be3 {[%clk 0:08:25]}  Ne7 {[%clk 0:10:10]} 20. Nxe7+ {[%clk 0:07:22]}  Qxe7 {[%clk 0:10:18]} 21. Rfc1 {[%clk 0:07:30]}  Rc6 {[%clk 0:10:03]} 22. Bb1 {[%clk 0:05:41]}  Rfc8 {[%clk 0:10:01]} 23. Ba2 {[%clk 0:05:26]}  b5 {[%clk 0:09:07]} 24. f4 {[%clk 0:03:30]}  Nxc4 {[%clk 0:08:52]} 25. Bd4 {[%clk 0:03:39]}  d5 {[%clk 0:07:04]} 26. e5 {[%clk 0:03:09]}  f5 {[%clk 0:06:33]} 27. Qf3 {[%clk 0:01:32]}  Qf7 {[%clk 0:06:18]} 28. h3 {[%clk 0:01:20]}  R8c7 {[%clk 0:06:18]} 29. Qf2 {[%clk 0:01:29]}  Bc8 {[%clk 0:06:17]} 30. Qh4 {[%clk 0:01:24]}  Qe7 {[%clk 0:05:51]} 31. Qh5 {[%clk 0:01:08]}  Rg6 {[%clk 0:05:48]} 32. Bb1 {[%clk 0:01:06]}  Rh6 {[%clk 0:05:36]} 33. Qf3 {[%clk 0:00:53]}  Be6 {[%clk 0:05:42]} 34. Qf2 {[%clk 0:00:43]}  a5 {[%clk 0:04:47]} 35. g4 {[%clk 0:00:52]}  Qf7 {[%clk 0:02:50]} 36. Rg3 {[%clk 0:01:01]}  b4 {[%clk 0:02:31]} 37. axb4 {[%clk 0:01:10]}  axb4 {[%clk 0:02:40]} 38. Qg2 {[%clk 0:00:42]}  Rg6 {[%clk 0:02:14]} 39. Rf1 {[%clk 0:00:28]}  h5 {[%clk 0:02:04]} 40. Kh1 {[%clk 0:00:16]}  hxg4 {[%clk 0:01:35]} 41. hxg4 {[%clk 0:00:24]}  Rxg4 {[%clk 0:01:33]} 42. Rxg4 {[%clk 0:00:32]}  Qh5+ {[%clk 0:01:42]} 43. Kg1 {[%clk 0:00:32]}  Qxg4 {[%clk 0:01:41]} 44. Qxg4 {[%clk 0:00:40]}  fxg4 {[%clk 0:01:50]} 45. f5 {[%clk 0:00:50]}  Nd2 {[%clk 0:01:51]} 46. Rd1 {[%clk 0:00:12]}  Nxb1 {[%clk 0:01:38]} 47. fxe6 {[%clk 0:00:12]}  Nc3 {[%clk 0:01:37]} 48. Re1 {[%clk 0:00:12]}  Kf8 {[%clk 0:01:13]} 49. Rf1+ {[%clk 0:00:18]}  Ke8 {[%clk 0:01:21]} 50. Kg2 {[%clk 0:00:27]}  b3 {[%clk 0:01:19]} 51. Rf7 {[%clk 0:00:36]}  Nb5 {[%clk 0:00:45]} 52. Kg3 {[%clk 0:00:15]}  Rxf7 {[%clk 0:00:48]} 53. exf7+ {[%clk 0:00:24]}  Kxf7 {[%clk 0:00:47]} 54. Bb2 {[%clk 0:00:53]}  Ke6 {[%clk 0:00:43]} 55. Kxg4 {[%clk 0:00:43]}  Na7 {[%clk 0:00:34]} 56. Kg5 {[%clk 0:00:44]}  Nc6 {[%clk 0:00:40]} 57. Kf4 {[%clk 0:00:53]}  Na5 {[%clk 0:00:48]} 0-1


[Site "http://www.Chess.com"]